bitfinex/quotes_ETHUSD_20250326
["timestamp","ask_amount","ask_price","bid_price","bid_amount"]
[1742962131686,0.11119688,2056.6,2056.5,7.69159016]
[1742962131885,3.0,2056.8,2056.5,7.69159016]
[1742962132065,0.11119688,2056.6,2056.5,7.69159016]
[1742962132266,3.0,2056.8,2056.5,7.69159016]
[1742962132584,0.11161378,2056.7,2056.5,7.69159016]
[1742962132884,3.0,2056.8,2056.5,7.69159016]
[1742962133085,3.02,2056.9,2056.6,4.86226]
[1742962135487,0.02,2056.9,2056.7,4.86197]
[1742962135680,0.02,2056.9,2056.7,14.5]
[1742962136789,0.02,2056.9,2056.6,4.86232]
[1742962137289,0.02,2056.9,2056.6,19.36232]
[1742962137490,0.02,2056.9,2056.6,14.5]
[1742962137691,0.02,2056.9,2056.6,21.380941]
[1742962137992,0.02,2056.9,2056.6,6.880941]
[1742962141966,0.02,2056.9,2056.7,14.5]
[1742962143198,0.02,2056.9,2056.7,19.36202]
[1742962146903,0.02,2056.9,2056.7,24.22401]
[1742962147201,0.02,2056.9,2056.8,2.6242671]
[1742962147580,0.02,2056.9,2056.7,9.72401]
[1742962147781,0.02,2056.9,2056.8,14.5]
[1742962150176,0.02,2056.9,2056.8,19.36192]
[1742962150694,0.02,2056.9,2056.7,4.86214]
[1742962151084,0.02,2056.9,2056.7,19.36214]
[1742962151284,0.02,2056.9,2056.7,22.0688581]
[1742962154311,0.02,2056.9,2056.8,4.86192]
[1742962154484,0.02,2056.9,2056.8,5.62602]
[1742962154680,0.02,2056.9,2056.8,5.67463353]
[1742962154883,0.02,2056.9,2056.8,20.17463353]
[1742962155076,0.02,2056.9,2056.8,23.38660716]
[1742962158515,0.02,2056.9,2056.8,22.62250716]
[1742962158713,0.02,2056.9,2056.8,17.76058716]
[1742962158884,0.02,2056.9,2056.7,9.72418]
[1742962159085,0.02,2056.9,2056.8,4.86192]
[1742962160459,0.02,2056.9,2056.7,19.36204]
[1742962161445,0.02,2056.9,2056.7,14.5]
[1742962161648,0.784,2056.9,2056.7,14.5]
[1742962164547,0.784,2056.9,2056.7,17.01816413]
[1742962165647,0.784,2056.9,2056.7,14.5]
[1742962166020,5.6457,2056.9,2056.7,14.5]
[1742962166344,5.6457,2056.9,2056.5,4.86251]
[1742962166844,5.64568,2056.9,2056.5,4.86251]
[1742962167650,0.784,2056.9,2056.5,9.72497]
[1742962167850,0.784,2056.9,2056.5,6.57480009]
[1742962168056,0.784,2056.9,2056.6,4.86237]
[1742962168344,0.784,2056.9,2056.5,6.57480009]
[1742962168517,0.784,2056.9,2056.5,11.43730009]
[1742962168712,0.784,2056.9,2056.5,11.43732009]
[1742962169745,5.64569,2056.9,2056.5,6.57480009]
[1742962169957,5.64569,2056.9,2056.5,11.43724009]
[1742962170451,5.64569,2056.9,2056.5,11.43729009]
[1742962170617,2.8261689,2056.9,2056.4,0.7641]
[1742962170818,6.9049789,2056.5,2056.0,0.7907]
[1742962171044,3.0,2056.5,2056.1,4.86334]
[1742962171268,3.0,2056.5,2056.2,4.86322]
[1742962171561,3.0,2056.5,2056.3,0.972656]
[1742962171756,3.0,2056.5,2056.3,5.835606]
[1742962173538,4.86211,2056.8,2056.3,5.835566]
[1742962173738,3.0,2056.7,2056.4,4.86283]
[1742962174556,3.0,2056.7,2056.4,4.86268]
[1742962174764,3.0,2056.7,2056.5,1.0698436]
[1742962176755,3.0,2056.8,2056.5,5.9324736]
[1742962176960,3.0,2056.8,2056.5,6.7231736]
[1742962177729,7.86193,2056.8,2056.5,6.7231736]
[1742962178349,7.86193,2056.8,2056.5,5.65333]
[1742962178883,3.0,2056.8,2056.5,5.65333]
[1742962179766,0.02,2056.9,2056.6,4.86233]
[1742962180362,0.02,2056.9,2056.7,4.86214]
[1742962182940,0.02,2056.9,2056.7,9.72413]
[1742962183141,0.02,2056.9,2056.8,0.972413]
[1742962183368,0.02,2056.9,2056.7,9.72404]
[1742962183588,0.02,2056.9,2056.7,4.86199]
[1742962186480,0.02,2056.9,2056.6,4.86228]
[1742962186683,0.02,2056.9,2056.6,9.72454]
[1742962187484,0.02,2056.9,2056.7,4.86213]
[1742962187671,0.02,2056.9,2056.8,0.972439]
[1742962192385,0.02,2056.9,2056.6,4.86229]
[1742962193284,0.11029149,2056.8,2056.6,4.86229]
[1742962193585,0.11029149,2056.8,2056.7,4.86215]
[1742962194902,0.11029149,2056.8,2056.7,5.65805]
[1742962196308,0.11029149,2056.8,2056.7,20.15805]
[1742962196885,0.11029149,2056.8,2056.7,22.350445]
[1742962197189,0.11029149,2056.8,2056.7,19.36215]
[1742962201368,0.11029149,2056.8,2056.7,14.5]
[1742962201759,0.11029149,2056.8,2056.7,19.36215]
[1742962205490,0.11029149,2056.8,2056.7,20.50593084]
[1742962205692,0.11029149,2056.8,2056.7,20.14765]
[1742962205999,0.02,2056.9,2056.8,4.86192]
[1742962206601,0.02,2056.9,2056.8,19.36192]
[1742962208701,0.02,2056.9,2056.8,14.5]
[1742962209002,0.02,2056.9,2056.8,19.36192]
[1742962209411,0.13085721,2056.9,2056.8,19.36192]
[1742962209705,0.13085721,2056.9,2056.8,22.09447021]
[1742962211098,0.13085721,2056.9,2056.8,17.23255021]
[1742962213774,0.13085721,2056.9,2056.8,22.09447021]
[1742962215005,0.13085721,2056.9,2056.8,22.90397021]
[1742962216201,0.13085721,2056.9,2056.8,22.09447021]
[1742962216994,0.13085721,2056.9,2056.8,17.23255021]
[1742962217532,0.13085721,2056.9,2056.8,22.09447021]
[1742962220414,0.13085721,2056.9,2056.8,17.23255021]
[1742962222686,1.27463805,2056.9,2056.8,14.5]
[1742962222887,5.63263,2056.7,2056.3,4.86308]
[1742962223113,1.14378084,2056.6,2056.3,4.86308]
[1742962223316,1.14378084,2056.4,2056.3,14.5]
[1742962223517,1.14378084,2056.5,2056.3,14.5]
[1742962223804,0.11079248,2056.4,2056.2,9.72643]
[1742962224020,0.11079248,2056.4,2056.3,5.40081439]
[1742962224698,1.14378084,2056.6,2056.3,5.40081439]
[1742962224887,0.1117752,2056.4,2056.3,5.40081439]
[1742962225086,1.14378084,2056.6,2056.3,5.40081439]
[1742962225283,0.1117752,2056.4,2056.3,5.40081439]
[1742962225600,1.14378084,2056.6,2056.3,5.40081439]
[1742962225802,0.11076771,2056.4,2056.3,5.40081439]
[1742962226000,1.14378084,2056.6,2056.3,5.40081439]
[1742962226319,0.11076771,2056.4,2056.3,5.40081439]
[1742962226526,1.14378084,2056.6,2056.3,5.40081439]
[1742962226820,0.11076771,2056.4,2056.3,5.40081439]
[1742962227120,1.96738084,2056.4,2056.2,14.5]
[1742962227441,2.07805029,2056.4,2056.2,14.5]
[1742962229093,1.96738084,2056.4,2056.2,14.5]
[1742962229419,0.10938068,2056.3,2056.2,14.5]
[1742962229930,1.14378084,2056.3,2056.2,14.5]
[1742962230423,1.96738084,2056.4,2056.2,14.5]
[1742962230825,0.10938068,2056.3,2056.2,14.5]
[1742962231231,1.96738084,2056.4,2056.2,14.5]
[1742962231712,1.37830716,2056.3,2056.2,14.5]
[1742962232117,1.14378084,2056.3,2056.2,14.5]
[1742962234695,1.14378084,2056.3,2056.2,19.36334]
[1742962235095,1.96738084,2056.4,2056.2,19.36334]
[1742962235523,0.23452632,2056.3,2056.2,19.36334]
[1742962235828,1.96738084,2056.4,2056.2,19.36334]
[1742962235995,0.23452632,2056.3,2056.2,19.36334]
[1742962236197,1.96738084,2056.4,2056.2,19.36334]
[1742962236529,0.23452632,2056.3,2056.2,14.5]
[1742962236928,1.37830716,2056.3,2056.2,14.5]
[1742962237629,1.14378084,2056.3,2056.2,14.5]
[1742962238518,1.37830716,2056.3,2056.2,14.5]
[1742962240260,0.23452632,2056.3,2056.2,14.5]
[1742962240561,0.23452632,2056.3,2056.1,4.86339]
[1742962240701,1.37830716,2056.3,2056.1,4.86339]
[1742962242108,0.23452632,2056.3,2056.2,4.86334]
[1742962245332,9.00642084,2056.5,2056.2,4.86334]
[1742962245540,0.23459015,2056.3,2056.2,4.86334]
[1742962245745,9.00642084,2056.5,2056.2,4.86334]
[1742962246033,1.14378084,2056.4,2056.1,19.36352]
[1742962246235,1.37878186,2056.4,2056.1,19.36352]
[1742962247164,1.37878186,2056.4,2056.1,19.36346]
[1742962248960,1.37878186,2056.4,2056.1,19.36343]
[1742962249137,1.37878186,2056.4,2056.2,4.86332]
[1742962249835,1.14378084,2056.4,2056.2,4.86332]
[1742962250042,0.23478158,2056.3,2056.2,4.86332]
[1742962252429,0.23478158,2056.3,2056.2,6.88753034]
[1742962252631,0.02,2056.9,2056.8,4.86192]
[1742962252840,0.02,2056.9,2056.8,20.24233534]
[1742962253069,0.21698879,2056.9,2056.8,23.30477662]
[1742962253275,0.02,2056.9,2056.8,23.30477662]
[1742962253425,0.21698879,2056.9,2056.8,23.30477662]
[1742962253625,0.02,2056.9,2056.8,23.30477662]
[1742962253835,0.21771525,2056.9,2056.8,23.30477662]
[1742962254038,0.02,2056.9,2056.8,23.30477662]
[1742962254265,0.21771525,2056.9,2056.8,23.30477662]
[1742962254469,0.02,2056.9,2056.8,23.30477662]
[1742962254669,0.21771525,2056.9,2056.8,23.30477662]
[1742962254866,0.02,2056.9,2056.8,23.30477662]
[1742962255038,0.21809975,2056.9,2056.8,23.30477662]
[1742962255240,0.02,2056.9,2056.8,23.30477662]
[1742962255440,0.21809975,2056.9,2056.8,23.30477662]
[1742962255668,0.02,2056.9,2056.8,23.30477662]
[1742962256143,0.21809975,2056.9,2056.8,23.30477662]
[1742962260749,0.21809975,2056.9,2056.8,7.97297662]
[1742962260952,0.21809975,2056.9,2056.8,4.86192]
[1742962261904,0.21809975,2056.9,2056.8,19.36192]
[1742962266001,2.26023651,2056.9,2056.8,14.5]
[1742962266589,0.21809975,2056.9,2056.8,14.5]
[1742962270478,7.92451651,2056.9,2056.8,14.5]
[1742962271197,3.06283651,2056.9,2056.5,10.71990682]
[1742962271576,3.06283651,2056.9,2056.5,5.85733682]
[1742962271776,3.06283651,2056.9,2056.6,14.5]
[1742962272001,3.06283651,2056.9,2056.6,19.36229]
[1742962272204,0.21809975,2056.9,2056.7,9.72415]
[1742962272414,0.21809975,2056.9,2056.7,4.86201]
[1742962272781,0.21809975,2056.9,2056.8,14.5]
[1742962275293,0.21809975,2056.9,2056.8,19.36192]
[1742962309213,0.21487881,2056.9,2056.8,19.36192]
[1742962309415,0.21487881,2056.9,2056.8,22.50146254]
[1742962312228,0.21487881,2056.9,2056.8,19.36192]
[1742962346682,0.21487881,2056.9,2056.8,21.27480681]
[1742962346855,0.01677906,2056.9,2056.8,21.82480681]
[1742962359995,0.01677906,2056.9,2056.8,20.68122]
[1742962360162,0.01677906,2056.9,2056.8,21.82480681]
[1742962360362,0.01677906,2056.9,2056.8,25.63025777]
[1742962362792,0.01677906,2056.9,2056.8,28.63025777]
[1742962365289,0.01677906,2056.9,2056.8,27.48667096]
[1742962365482,0.01677906,2056.9,2056.8,28.63025777]
[1742962367709,0.01677906,2056.9,2056.8,27.48667096]
[1742962367996,0.01677906,2056.9,2056.8,28.63025777]
[1742962372201,0.01677906,2056.9,2056.8,27.48667096]
[1742962372397,0.01677906,2056.9,2056.8,28.63025777]
[1742962373294,9.06e-06,2056.9,2056.8,28.63025777]
[1742962374396,9.06e-06,2056.9,2056.8,29.77384477]
[1742962376306,9.06e-06,2056.9,2056.8,30.01500318]
[1742962376601,9.06e-06,2056.9,2056.8,29.77384477]
[1742962376900,9.06e-06,2056.9,2056.8,30.01331709]
[1742962378603,9.06e-06,2056.9,2056.8,36.15331709]
[1742962380601,9.06e-06,2056.9,2056.8,35.91384477]
[1742962381684,9.06e-06,2056.9,2056.8,40.50984477]
[1742962382106,9.06e-06,2056.9,2056.8,33.90337096]
[1742962382400,9.06e-06,2056.9,2056.8,38.04695777]
[1742962382778,9.06e-06,2056.9,2056.8,38.59695777]
[1742962388211,9.06e-06,2056.9,2056.8,32.85737096]
[1742962388415,9.06e-06,2056.9,2056.8,37.45237096]
[1742962388705,9.06e-06,2056.9,2056.8,29.85737096]
[1742962388914,9.06e-06,2056.9,2056.8,34.45237096]
[1742962391388,9.06e-06,2056.9,2056.8,35.59595777]
[1742962392734,9.06e-06,2056.9,2056.8,36.41915777]
[1742962397398,9.06e-06,2056.9,2056.8,39.41915777]
[1742962408734,9.06e-06,2056.9,2056.8,40.56274377]
[1742962409130,9.06e-06,2056.9,2056.8,34.82415696]
[1742962409330,9.06e-06,2056.9,2056.8,39.73854377]
[1742962409734,9.06e-06,2056.9,2056.8,39.18854377]
[1742962409937,9.06e-06,2056.9,2056.8,38.04495777]
[1742962410137,9.06e-06,2056.9,2056.8,39.42485777]
[1742962412438,9.06e-06,2056.9,2056.8,40.56844477]
[1742962418451,9.06e-06,2056.9,2056.8,35.70652477]
[1742962419447,9.06e-06,2056.9,2056.8,40.56844477]
[1742962420419,9.06e-06,2056.9,2056.8,35.70652477]
[1742962420746,9.06e-06,2056.9,2056.8,34.56293796]
[1742962420947,9.06e-06,2056.9,2056.8,35.70652477]
[1742962423745,9.06e-06,2056.9,2056.8,34.87662477]
[1742962424548,9.06e-06,2056.9,2056.8,33.73303777]
[1742962426948,9.06e-06,2056.9,2056.8,34.54493777]
[1742962431457,9.06e-06,2056.9,2056.8,39.40685777]
[1742962432332,9.06e-06,2056.9,2056.8,34.54493777]
[1742962434464,9.06e-06,2056.9,2056.8,39.40685777]
[1742962442069,9.06e-06,2056.9,2056.8,32.30737096]
[1742962442260,9.06e-06,2056.9,2056.8,37.44937096]
[1742962442649,9.06e-06,2056.9,2056.8,36.89937096]
[1742962442970,9.06e-06,2056.9,2056.8,37.44937096]
[1742962443171,9.06e-06,2056.9,2056.8,38.59295777]
[1742962446667,9.06e-06,2056.9,2056.8,34.00095777]
[1742962446841,9.06e-06,2056.9,2056.8,38.59295777]
[1742962460002,9.06e-06,2056.9,2056.8,39.37405777]
[1742962464614,9.06e-06,2056.9,2056.8,38.59295777]
[1742962464834,0.7628,2057.3,2056.9,3.0]
[1742962464985,1.94838681,2058.1,2057.8,4.85946]
[1742962465186,1.94838681,2058.0,2057.9,4.85928]
[1742962465518,1.94838681,2058.0,2057.7,9.71946]
[1742962465519,0.8048,2057.9,2057.7,9.71946]
[1742962465701,0.8048,2057.7,2057.6,4.85986]
[1742962465909,0.96837405,2057.7,2057.6,19.35986]
[1742962466627,0.8048,2057.7,2057.6,19.35986]
[1742962468002,0.96873949,2057.7,2057.6,19.35986]
[1742962470629,2.1123263,2057.7,2057.6,19.35986]
[1742962470793,2.1123263,2057.7,2057.6,14.5]
[1742962471179,1.94838681,2057.7,2057.6,19.36003]
[1742962471378,2.11125322,2057.7,2057.6,19.36003]
[1742962475048,1.30645322,2057.7,2057.5,9.72026]
[1742962475214,1.94838681,2057.6,2057.5,4.8601]
[1742962475416,2.11093959,2057.6,2057.5,4.8601]
[1742962475759,2.11093959,2057.6,2057.5,19.3601]
[1742962476064,1.94838681,2057.6,2057.5,19.3601]
[1742962477061,1.14358681,2057.6,2057.4,4.8605]
[1742962477265,2.10951365,2057.5,2057.4,4.8605]
[1742962477626,2.10951365,2057.5,2057.4,19.3605]
[1742962477827,1.94838681,2057.5,2057.4,19.3605]
[1742962481351,2.10887323,2057.5,2057.4,14.5]
[1742962482052,2.10887323,2057.5,2057.4,19.3605]
[1742962486762,2.10887323,2057.5,2057.4,14.5]
[1742962489247,2.10887323,2057.5,2057.4,19.3605]
[1742962490059,2.10887323,2057.5,2057.4,14.5]
[1742962490431,2.10887323,2057.5,2057.4,19.3605]
[1742962492464,2.10887323,2057.5,2057.4,14.5]
[1742962492760,1.30407323,2057.5,2057.2,4.86096]
[1742962492943,1.14358681,2057.3,2057.2,4.86096]
[1742962493443,1.30259049,2057.3,2057.2,19.36096]
[1742962493643,0.15900368,2057.3,2057.2,19.36096]
[1742962500079,4.86215,2056.7,2056.6,0.50684524]
[1742962500281,0.7548,2056.5,2055.5,5.65132]
[1742962500459,1.14358681,2055.9,2055.6,5.429762]
[1742962500779,0.15175217,2055.8,2055.7,19.36438]
[1742962501099,0.15175217,2055.8,2055.7,19.36452]
[1742962501296,2.19630128,2055.8,2055.7,14.5]
[1742962501798,2.19630128,2055.8,2055.7,19.36452]
[1742962509302,2.19630128,2055.8,2055.7,14.5]
[1742962509869,2.19630128,2055.8,2055.7,19.36452]
[1742962510968,2.19630128,2055.8,2055.7,14.5]
[1742962516810,7.84248128,2055.8,2055.7,14.5]
[1742962516987,0.7819,2055.6,2055.3,4.86536]
[1742962517186,2.04454911,2055.4,2055.3,4.86536]
[1742962517392,2.04454911,2055.4,2055.3,19.36536]
[1742962517593,2.18971728,2055.4,2055.3,19.36536]
[1742962520314,2.18971728,2055.4,2055.3,14.5]
[1742962521027,2.18971728,2055.4,2055.1,11.00593]
[1742962521319,2.18971728,2055.4,2055.1,15.87171]
[1742962521519,2.18971728,2055.4,2055.2,14.5]
[1742962522420,0.7819,2055.3,2055.2,14.5]
[1742962522718,0.92288204,2055.3,2055.2,14.5]
[1742962522921,0.92288204,2055.3,2055.0,4.86614]
[1742962523347,0.92288204,2055.3,2054.3,4.8677]
[1742962523348,0.7819,2054.7,2054.3,4.8677]
[1742962523643,2.04454911,2054.5,2054.4,4.86748]
[1742962523992,2.1778131,2054.5,2054.4,4.86748]
[1742962524192,2.1778131,2054.5,2054.4,19.36748]
[1742962524413,2.1778131,2054.5,2054.4,19.342104]
[1742962525846,2.1778131,2054.5,2054.4,19.3676]
[1742962529312,0.13326399,2054.5,2054.4,20.1247]
[1742962529497,6.64754911,2055.2,2055.0,4.86602]
[1742962530112,9.64754911,2055.2,2055.1,14.5]
[1742962530607,6.64754911,2055.2,2055.1,19.36594]
[1742962531903,6.64754911,2055.2,2055.1,14.5]
[1742962532732,6.64754911,2055.2,2055.1,19.36594]
[1742962533133,6.75719438,2055.2,2055.1,19.36594]
[1742962534433,2.15419438,2055.2,2055.1,19.36594]
[1742962540030,0.10964527,2055.2,2055.1,19.36594]
[1742962540539,30.11154911,2055.4,2055.2,4.86562]
[1742962543543,30.11154911,2055.4,2055.1,19.36594]
[1742962543845,0.11087513,2055.3,2055.2,4.8657]
[1742962544944,0.11087513,2055.3,2055.1,19.36587]
[1742962545547,2.04454911,2055.2,2055.1,19.36587]
[1742962545848,2.15287455,2055.2,2055.1,19.36587]
[1742962547320,0.10832544,2055.2,2055.1,19.36587]
[1742962547620,2.04454911,2055.4,2055.1,24.23163]
[1742962547820,0.10832544,2055.2,2055.1,24.23163]
[1742962548038,2.04454911,2055.4,2055.1,24.23163]
[1742962548240,0.10832544,2055.2,2055.1,24.23163]
[1742962548760,2.04454911,2055.4,2055.1,24.23163]
[1742962548970,0.10873693,2055.3,2055.1,24.23163]
[1742962549970,0.10873693,2055.3,2055.2,4.8657]
[1742962551169,0.10873693,2055.3,2055.2,14.5]
[1742962555039,0.10873693,2055.3,2055.1,4.86576]
[1742962555235,2.04454911,2055.2,2054.9,15.87252]
[1742962555660,0.10774167,2055.1,2055.0,19.36618]
[1742962556167,2.04454911,2055.2,2055.0,19.36618]
[1742962556383,0.10774167,2055.1,2055.0,19.36618]
[1742962556668,2.04454911,2055.2,2055.0,19.36618]
[1742962557035,0.10774167,2055.1,2055.0,14.5]
[1742962558067,0.10774167,2055.1,2055.0,19.36618]
[1742962558868,0.90134167,2055.1,2055.0,4.86618]
[1742962559773,0.10774167,2055.1,2055.0,4.86618]
[1742962561266,0.10774167,2055.1,2054.9,4.86623]
[1742962561856,0.10774167,2055.1,2055.0,14.5]
[1742962562646,0.10774167,2055.1,2055.0,19.36618]
[1742962564784,0.10774167,2055.1,2055.0,14.5]
[1742962565380,0.10774167,2055.1,2055.0,19.36618]
[1742962566960,1.2537251,2055.1,2055.0,19.36618]
[1742962568046,1.2537251,2055.1,2055.0,14.5]
[1742962570379,1.2537251,2055.1,2054.9,4.86623]
[1742962570547,1.14598343,2055.0,2054.9,4.86623]
[1742962570752,1.25301204,2055.0,2054.9,4.86623]
[1742962571084,2.03371204,2055.0,2054.8,4.86665]
[1742962571285,1.14598343,2054.9,2054.8,4.86665]
[1742962571481,1.14598343,2054.9,2054.8,19.36665]
[1742962571785,1.24092726,2054.9,2054.8,4.86665]
[1742962572082,1.24092726,2054.9,2054.8,19.36665]
[1742962586026,0.09494383,2054.9,2054.8,19.36665]
[1742962586316,1.14598343,2055.1,2055.0,4.86618]
[1742962586515,1.24159934,2055.1,2055.0,4.86618]
[1742962587035,1.24159934,2055.1,2055.0,19.36618]
[1742962589656,0.09561591,2055.1,2055.0,19.36618]
[1742962589839,1.24159934,2055.1,2055.0,19.36618]
[1742962590042,1.14598343,2055.1,2055.0,19.36618]
[1742962590357,1.2414482,2055.1,2055.0,19.36618]
[1742962590955,0.09546477,2055.1,2055.0,19.36618]
[1742962591155,13.28596,2055.4,2055.0,19.36618]
[1742962591317,1.2414482,2055.1,2055.0,19.36618]
[1742962599421,1.14598343,2055.1,2055.0,19.36618]
[1742962600853,1.14598343,2055.2,2055.0,19.36618]
[1742962601352,1.14598343,2055.2,2055.1,4.86594]
[1742962602158,1.14598343,2055.2,2055.0,19.36618]
[1742962603856,13.28593,2055.4,2055.0,19.36618]
[1742962604157,1.14598343,2055.2,2055.0,19.36618]
[1742962604526,1.14598343,2055.1,2055.0,19.36618]
[1742962606450,1.14598343,2055.1,2055.0,14.5]
[1742962606657,1.23756649,2055.1,2055.0,14.5]
[1742962606869,1.23756649,2055.1,2055.0,19.36618]
[1742962607357,1.23756649,2055.1,2055.0,14.5]
[1742962607859,1.14598343,2055.1,2055.0,14.5]
[1742962608570,1.14598343,2055.1,2055.0,19.36618]
[1742962611773,8.4207,2055.4,2055.0,19.36618]
[1742962612073,8.5117923,2055.4,2055.1,4.86585]
[1742962612372,13.3770223,2055.4,2055.0,19.36618]
[1742962613276,1.14598343,2055.1,2055.0,19.36618]
[1742962616071,1.14598343,2055.1,2055.0,14.5]
[1742962616243,1.14598343,2055.1,2054.9,4.8664]
[1742962616448,1.14598343,2055.0,2054.9,4.8664]
[1742962618081,4.86556,2055.3,2054.9,4.8664]
[1742962618250,1.14598343,2055.0,2054.9,4.8664]
[1742962620880,1.14598343,2055.0,2054.9,19.3664]
[1742962621679,1.14598343,2055.0,2054.8,4.86664]
[1742962621977,6.01176343,2055.2,2054.8,4.86665]
[1742962621978,1.14598343,2054.9,2054.8,4.86665]
[1742962622379,1.14598343,2054.9,2054.7,4.86673]
[1742962622543,1.14598343,2054.8,2054.6,14.5]
[1742962622748,1.14598343,2054.7,2054.4,4.8675]
[1742962622948,1.14598343,2054.5,2054.4,4.8675]
[1742962624692,1.14598343,2054.5,2054.3,14.5]
[1742962624858,1.14598343,2054.4,2054.3,14.5]
[1742962625262,1.14598343,2054.4,2054.3,19.36783]
[1742962626793,1.14598343,2054.4,2054.3,14.5]
[1742962627152,1.14598343,2054.4,2054.3,19.36783]
[1742962627385,1.14598343,2054.4,2054.3,14.5]
[1742962629489,1.14598343,2054.4,2054.3,19.36783]
[1742962630073,1.14598343,2054.4,2054.3,14.5]
[1742962632176,1.14598343,2054.4,2054.3,19.36783]
[1742962632797,1.14598343,2054.4,2054.3,14.5]
[1742962634489,5.73898343,2054.4,2054.3,14.5]
[1742962635276,5.73898343,2054.4,2054.1,4.88827]
[1742962635468,1.14598343,2054.2,2054.1,4.88827]
[1742962635669,1.14598343,2054.2,2054.1,19.38827]
[1742962636165,1.14598343,2054.3,2054.1,19.38827]
[1742962638368,1.14598343,2054.3,2054.1,24.25642]
[1742962638897,1.14598343,2054.3,2054.1,19.38815]
[1742962642001,1.14598343,2054.2,2054.1,19.38815]
[1742962642802,1.14598343,2054.2,2054.1,14.52]
[1742962643102,1.14598343,2054.2,2054.1,19.38831]
[1742962645105,1.14598343,2054.2,2054.1,14.52]
[1742962645472,1.14598343,2054.2,2054.1,19.38831]
[1742962645885,1.14598343,2054.2,2054.1,14.52]
[1742962646083,1.14598343,2054.2,2054.1,0.02]
[1742962649094,1.14598343,2054.2,2054.1,4.88831]
[1742962649709,1.14598343,2054.2,2054.1,0.02]
[1742962652726,1.14598343,2054.2,2054.1,4.88831]
[1742962653103,0.8212,2054.3,2054.1,4.88831]
[1742962653429,1.14598343,2054.2,2054.1,4.88831]
[1742962653929,1.14598343,2054.2,2054.1,0.02]
[1742962657257,3.8212,2054.6,2054.1,0.02]
[1742962657404,4.593,2054.5,2054.3,4.86765]
[1742962657800,5.73898343,2054.5,2054.3,4.86765]
[1742962658532,1.14598343,2054.5,2054.3,4.86765]
[1742962658733,5.73898343,2054.5,2054.3,4.86765]
[1742962659728,3.0,2054.7,2054.2,1.94458343]
[1742962660034,1.14598343,2054.6,2054.4,4.86756]
[1742962660230,1.14598343,2054.6,2054.4,9.73504]
[1742962660526,5.386,2054.7,2054.6,4.86712]
[1742962660527,3.0,2054.7,2054.6,4.86712]
[1742962660731,29.23098343,2054.8,2054.6,4.86696]
[1742962661939,29.23098343,2054.8,2054.6,9.7339]
[1742962662840,29.23098343,2054.8,2054.6,4.86705]
[1742962663249,29.23098343,2054.8,2054.7,4.86689]
[1742962663419,28.085,2054.8,2054.7,4.86689]
[1742962663829,28.085,2054.8,2054.7,5.64569]
[1742962664049,29.23098343,2054.8,2054.7,5.64569]
[1742962664651,29.23098343,2054.8,2054.6,19.36705]
[1742962665154,29.23098343,2054.8,2054.6,24.234]
[1742962665445,1.14598343,2054.8,2054.6,24.234]
[1742962666553,1.14598343,2054.8,2054.7,4.86689]
[1742962668354,1.14598343,2054.8,2054.6,19.36695]
[1742962668658,1.14598343,2054.8,2054.6,24.23389]
[1742962669457,1.14598343,2054.8,2054.6,14.5]
[1742962670465,1.14598343,2054.9,2054.7,4.86689]
[1742962671049,1.14598343,2054.8,2054.6,24.23413]
[1742962672263,1.14598343,2054.8,2054.6,19.36701]
[1742962672451,1.14598343,2054.8,2054.6,14.5]
[1742962678771,1.14598343,2054.9,2054.6,14.5]
[1742962681068,1.14598343,2054.9,2054.5,1.73313094]
[1742962681277,0.7762,2055.3,2054.6,1.97778343]
[1742962681442,3.0,2055.2,2054.8,1.14598343]
[1742962681643,5.73798343,2055.4,2054.9,14.5]
[1742962681836,28.08,2055.5,2055.0,1.97778343]
[1742962682040,3.0,2055.4,2055.0,0.8318]
[1742962682383,29.22598343,2055.5,2055.0,0.8318]
[1742962682544,29.22598343,2055.5,2055.1,14.5]
[1742962683442,1.14598343,2055.4,2055.1,14.5]
[1742962687682,1.14598343,2055.4,2055.1,19.36577]
[1742962688050,1.14598343,2055.4,2055.1,24.23153]
[1742962688567,1.14598343,2055.2,2054.9,11.00623]
[1742962688774,1.14598343,2055.0,2054.9,11.00623]
[1742962688962,1.14598343,2055.1,2054.9,4.86623]
[1742962689573,1.14598343,2055.1,2054.8,5.69844]
[1742962689980,1.14598343,2055.1,2054.8,10.5649]
[1742962690179,1.14598343,2055.0,2054.7,4.86674]
[1742962690678,1.14598343,2054.8,2054.6,4.8671]
[1742962690880,1.14598343,2054.8,2054.6,19.3671]
[1742962692957,6.91310859,2055.0,2054.6,19.3671]
[1742962693154,2.85218859,2054.8,2054.6,14.5]
[1742962693484,7.71896859,2054.8,2054.6,14.5]
[1742962694384,7.86648,2054.9,2054.6,14.5]
[1742962694573,7.86648,2054.9,2054.6,19.36708]
[1742962694881,3.0,2054.9,2054.6,19.36708]
[1742962695387,5.04688859,2055.0,2054.7,4.86678]
[1742962695588,5.04688859,2055.0,2054.6,14.5]
[1742962695796,6.91362859,2054.8,2054.6,14.5]
[1742962700470,5.67256,2054.6,2054.2,4.86802]
[1742962700668,7.71944859,2054.6,2054.2,4.86802]
[1742962700867,12.31044859,2054.6,2054.3,14.5]
[1742962701186,4.591,2054.6,2054.3,19.36777]
[1742962701394,4.591,2054.7,2054.6,4.86703]
[1742962701571,4.591,2054.8,2054.6,4.86703]
[1742962701887,4.591,2054.8,2054.5,4.86726]
[1742962704277,2.04688859,2054.6,2054.3,19.3677]
[1742962704455,6.91404859,2054.6,2054.3,14.5]
[1742962704890,11.78136859,2054.6,2054.1,15.89634]
[1742962705262,0.7547,2054.5,2054.2,14.5]
[1742962705659,5.62215,2054.5,2054.2,14.5]
[1742962705861,6.91452859,2054.4,2054.2,14.5]
[1742962706078,3.0,2054.3,2054.2,14.5]
[1742962706391,5.04688859,2054.4,2054.2,14.5]
[1742962707594,9.91449859,2054.4,2054.2,14.5]
[1742962710399,5.04688859,2054.4,2054.2,14.5]
[1742962710597,9.45901,2054.3,2054.1,0.02]
[1742962710799,5.04688859,2054.2,2054.1,0.02]